bitfinex/quotes_BTCUSD_20230113
["timestamp","ask_amount","ask_price","bid_price","bid_amount"]
[1673623947175,0.45435505,19229.0,19228.0,0.001]
[1673623947676,0.45435505,19229.0,19228.0,0.00171162]
[1673623947921,0.934973,19232.0,19226.0,0.1]
[1673623948179,0.934973,19232.0,19225.0,0.53984449]
[1673623948180,1.4462337,19231.0,19225.0,0.53984449]
[1673623948443,0.95272114,19230.0,19225.0,0.01347025]
[1673623948692,0.5262327,19228.0,19225.0,0.01347025]
[1673623948939,2.81302414,19227.0,19225.0,0.01328025]
[1673623949186,2.81302414,19227.0,19223.0,0.00534811]
[1673623949187,0.17568475,19224.0,19223.0,0.00534811]
[1673623949433,1.80705375,19224.0,19223.0,0.00534811]
[1673623949680,1.63586375,19224.0,19223.0,0.00534811]
[1673623949927,1.93586375,19224.0,19223.0,0.00534811]
[1673623950171,1.62886494,19224.0,19223.0,0.00534811]
[1673623950412,0.72449894,19224.0,19223.0,0.00534811]
[1673623950656,0.42092867,19224.0,19223.0,0.07653811]
[1673623950906,0.14049475,19224.0,19223.0,0.00534811]
[1673623951150,0.56021314,19224.0,19223.0,0.00534811]
[1673623951411,0.37531475,19224.0,19223.0,0.00534811]
[1673623951659,0.51031475,19224.0,19223.0,0.00534811]
[1673623951906,1.15661173,19224.0,19223.0,0.00534811]
[1673623952159,1.56403589,19224.0,19223.0,0.00534811]
[1673623952428,1.13754745,19224.0,19223.0,0.00534811]
[1673623952677,1.17666943,19224.0,19223.0,0.00534811]
[1673623953165,0.79071534,19224.0,19223.0,0.00534811]
[1673623953424,0.51131475,19224.0,19223.0,0.00534811]
[1673623953670,0.57286274,19224.0,19223.0,0.00534811]
[1673623954161,0.44339318,19223.0,19222.0,0.09206481]
[1673623954435,0.14049475,19224.0,19222.0,1.96269754]
[1673623954679,0.14049475,19224.0,19223.0,1.57567516]
[1673623954922,0.14049475,19224.0,19223.0,2.09588516]
[1673623955173,0.14049475,19224.0,19223.0,1.98558022]
[1673623957988,1.340474,19222.0,19221.0,0.07]
[1673623958734,1.70804654,19222.0,19221.0,0.07]
[1673623958989,0.934449,19224.0,19221.0,0.55038849]
[1673623959232,0.934449,19224.0,19222.0,0.1]
[1673623959233,0.414257,19224.0,19222.0,0.1]
[1673623959485,0.03932198,19224.0,19223.0,0.21030494]
[1673623959725,0.0002,19224.0,19223.0,1.25088857]
[1673623959980,0.0002,19224.0,19223.0,0.485622]
[1673623960220,0.34505674,19224.0,19223.0,1.62620563]
[1673623960473,0.135,19224.0,19223.0,1.36540563]
[1673623960733,0.3468339,19223.0,19222.0,0.101]
[1673623960995,0.3468339,19223.0,19222.0,0.001]
[1673623961504,0.52021,19223.0,19221.0,0.05]
[1673623961745,0.85405965,19223.0,19221.0,0.05]
[1673623961996,0.301,19222.0,19221.0,0.05]
[1673623962245,0.820237,19222.0,19221.0,0.05]
[1673623962498,0.1,19221.0,19219.0,0.00595182]
[1673623962746,1.5668147,19220.0,19219.0,0.00595182]
[1673623962995,1.8668147,19220.0,19219.0,0.00595182]
[1673623963240,1.040582,19220.0,19219.0,0.00595182]
[1673623963486,1.340582,19220.0,19219.0,0.00595182]
[1673623963738,1.62975178,19220.0,19219.0,0.00595182]
[1673623963981,1.040582,19220.0,19219.0,0.00595182]
[1673623964229,1.340582,19220.0,19219.0,0.00595182]
[1673623964987,1.553582,19220.0,19219.0,0.00595182]
[1673623965470,2.50362348,19220.0,19219.0,0.00595182]
[1673623965715,3.2482793,19220.0,19219.0,0.00595182]
[1673623965988,3.09338289,19220.0,19219.0,0.00595182]
[1673623966219,2.5542234,19220.0,19219.0,0.00595182]
[1673623966469,2.52762348,19220.0,19219.0,0.00595182]
[1673623966711,2.1038147,19220.0,19219.0,0.00595182]
[1673623967218,2.52762348,19220.0,19219.0,0.00595182]
[1673623967468,1.040582,19220.0,19219.0,0.00595182]
[1673623967717,0.137,19220.0,19219.0,0.00595182]
[1673623967966,0.84698944,19221.0,19219.0,0.00595182]
[1673623968223,0.136,19220.0,19219.0,0.00595182]
[1673623968482,0.136,19220.0,19217.0,0.00657879]
[1673623968483,0.1,19219.0,19217.0,0.00657879]
[1673623968722,2.23831613,19218.0,19217.0,0.00657879]
[1673623968967,2.76212491,19218.0,19217.0,0.00657879]
[1673623969219,0.1,19217.0,19216.0,0.00166755]
[1673623969466,0.520372,19217.0,19216.0,0.00166755]
[1673623969750,0.80969497,19218.0,19216.0,0.07285755]
[1673623970001,0.80969497,19218.0,19216.0,0.17285755]
[1673623970250,0.00903843,19218.0,19217.0,0.5734542]
[1673623970500,0.00903843,19218.0,19217.0,0.324822]
[1673623970762,0.14603843,19218.0,19216.0,0.10166755]
[1673623971019,0.21171594,19221.0,19218.0,0.1]
[1673623971265,0.21171594,19221.0,19219.0,0.485322]
[1673623971508,0.21171594,19221.0,19216.0,0.00166755]
[1673623971509,1.0465237,19220.0,19216.0,0.00166755]
[1673623971763,1.0465237,19220.0,19217.0,0.001]
[1673623971764,0.08582,19218.0,19217.0,0.001]
[1673623972006,0.07082,19218.0,19216.0,0.00166755]
[1673623972771,1.4173997,19218.0,19216.0,0.00166755]
[1673623973018,0.1,19217.0,19216.0,0.00166755]
[1673623973265,1.56937101,19217.0,19216.0,0.00166755]
[1673623973513,1.4466047,19217.0,19216.0,0.00166755]
[1673623973754,1.86884962,19217.0,19216.0,0.00166755]
[1673623973998,1.34261692,19217.0,19216.0,0.00166755]
[1673623974251,0.97470403,19217.0,19216.0,0.00166755]
[1673623974506,0.956372,19217.0,19216.0,0.00166755]
[1673623974754,0.33419889,19217.0,19216.0,0.00166755]
[1673623975490,0.436,19217.0,19216.0,0.00166755]
[1673623975737,0.3341847,19217.0,19216.0,0.00166755]
[1673623975985,0.136,19217.0,19216.0,0.10166755]
[1673623976237,0.136,19217.0,19216.0,0.7724568]
[1673623976480,0.136,19217.0,19216.0,0.10166755]
[1673623976726,0.2967795,19217.0,19216.0,0.00166755]
[1673623977230,0.136,19217.0,19216.0,0.00166755]
[1673623977475,0.136,19217.0,19216.0,0.94688855]
[1673623977725,0.30925067,19217.0,19216.0,0.00166755]
[1673623978471,0.17325067,19217.0,19216.0,0.00166755]
[1673623978722,0.28425067,19217.0,19216.0,0.00166755]
[1673623978982,1.451744,19217.0,19216.0,0.00166755]
[1673623979497,1.551744,19217.0,19216.0,0.00166755]
[1673623979772,1.86365928,19217.0,19216.0,0.00166755]
[1673623980025,2.38989198,19217.0,19216.0,0.00166755]
[1673623980275,2.86736258,19217.0,19216.0,0.00166755]
[1673623980525,2.86736258,19217.0,19216.0,6.755e-05]
[1673623980526,3.38989198,19217.0,19216.0,6.755e-05]
[1673623980770,3.38989198,19217.0,19215.0,0.00657879]
[1673623980771,0.1,19216.0,19215.0,0.00657879]
[1673623981024,2.54482712,19216.0,19215.0,0.00647288]
[1673623981266,2.38994598,19216.0,19215.0,0.00647288]
[1673623982038,3.22694599,19216.0,19215.0,0.00947288]
[1673623982294,3.22694599,19216.0,19215.0,0.29096782]
[1673623982295,1.35739901,19216.0,19215.0,0.29096782]
[1673623982543,1.35739901,19216.0,19215.0,0.81154739]
[1673623982544,0.83700001,19216.0,19215.0,0.81154739]
[1673623982785,1.01104492,19216.0,19215.0,0.00947288]
[1673623983033,0.83700001,19216.0,19215.0,0.00947288]
[1673623983277,1.22039901,19216.0,19215.0,0.00647288]
[1673623983519,1.90946634,19216.0,19215.0,0.00647288]
[1673623983768,0.68906733,19216.0,19215.0,0.00647288]
[1673623984018,0.135,19216.0,19215.0,0.21677782]
[1673623984267,0.0002,19218.0,19215.0,1.81522331]
[1673623984517,0.136,19216.0,19215.0,1.81522331]
[1673623984760,0.136,19216.0,19215.0,1.92974037]
[1673623985010,0.136,19216.0,19215.0,1.93274037]
[1673623985011,0.272,19216.0,19215.0,1.93274037]
[1673623985287,1.04318828,19221.0,19215.0,1.92974037]
[1673623985556,0.17819887,19219.0,19217.0,0.1]
[1673623985818,1.760961,19222.0,19218.0,1.21567194]
[1673623985819,0.19848275,19222.0,19218.0,1.21567194]
[1673623986075,0.19848275,19222.0,19219.0,0.63512694]
[1673623986328,0.12168933,19222.0,19220.0,0.324822]
[1673623986610,0.11542722,19221.0,19220.0,0.21030494]
[1673623986842,0.0002,19223.0,19220.0,0.520286]
[1673623987091,0.0002,19223.0,19221.0,0.21030494]
[1673623987334,0.25312936,19222.0,19221.0,0.520254]
[1673623987581,0.25312936,19222.0,19220.0,0.520286]
[1673623987582,0.12812936,19222.0,19220.0,0.520286]
[1673623987836,0.135,19221.0,19220.0,0.523289]
[1673623988076,0.135,19221.0,19220.0,1.53598179]
[1673623988350,0.0002,19223.0,19220.0,1.69378179]
[1673623988596,0.12037201,19224.0,19221.0,0.324822]
[1673623988852,0.13294302,19226.0,19222.0,1.67560094]
[1673623989109,0.11219379,19226.0,19223.0,0.69662694]
[1673623989359,0.01354632,19226.0,19224.0,1.67549294]
[1673623989612,0.01354632,19226.0,19225.0,0.486522]
[1673623989862,0.13154632,19226.0,19225.0,1.115178]
[1673623990107,0.01354632,19226.0,19225.0,0.953478]
[1673623990847,0.01354632,19226.0,19225.0,1.16978294]
[1673623991104,0.01354632,19226.0,19225.0,1.115178]
[1673623991630,0.01354632,19226.0,19225.0,1.112678]
[1673623991631,0.13054632,19226.0,19225.0,1.112678]
[1673623991863,0.13054632,19226.0,19225.0,0.950978]
[1673623992372,0.01354632,19226.0,19225.0,0.620156]
[1673623992658,0.07379632,19226.0,19225.0,0.571156]
[1673623992935,0.06379632,19226.0,19224.0,1.32520685]
[1673623993177,0.19279632,19226.0,19225.0,0.005]
[1673623993423,0.19279632,19226.0,19225.0,1.42475818]
[1673623993666,0.19279632,19226.0,19225.0,0.924668]
[1673623993667,0.06379632,19226.0,19225.0,0.924668]
[1673623993925,0.12979632,19226.0,19225.0,1.550824]
[1673623994177,0.01354632,19226.0,19225.0,1.544824]
[1673623994423,0.01354632,19226.0,19225.0,1.549824]
[1673623994424,0.11550632,19226.0,19225.0,1.549824]
[1673623994666,0.01371428,19230.0,19226.0,0.1]
[1673623994667,0.01253534,19230.0,19226.0,0.1]
[1673623994920,0.01253534,19230.0,19228.0,0.1617]
[1673623995164,0.01253534,19230.0,19229.0,1.373416]
[1673623995405,0.01253534,19230.0,19229.0,1.58372094]
[1673623995656,0.01253534,19230.0,19229.0,1.373416]
[1673623995903,0.01253534,19230.0,19229.0,1.473416]
[1673623996151,0.11453534,19230.0,19229.0,1.480416]
[1673623996402,0.01115023,19230.0,19229.0,1.473416]
[1673623996648,0.18397023,19230.0,19229.0,1.371916]
[1673623996903,0.08197023,19230.0,19227.0,0.520096]
[1673623997175,0.08197023,19230.0,19226.0,0.52011]
[1673623997176,0.10598613,19229.0,19226.0,0.52011]
[1673623997423,0.10598613,19229.0,19226.0,1.59511612]
[1673623997672,0.10598613,19229.0,19226.0,1.040238]
[1673623997936,0.3,19229.0,19225.0,0.00019]
[1673623998197,0.3,19229.0,19223.0,0.520186]
[1673623998198,1.340105,19229.0,19223.0,0.520186]
[1673623998442,1.340105,19229.0,19222.0,0.520215]
[1673623998443,1.79972123,19229.0,19222.0,0.520215]
[1673623998712,0.1,19228.0,19223.0,0.31030494]
[1673623999198,0.1,19228.0,19223.0,0.8916662]
[1673623999686,0.11592846,19227.0,19223.0,1.4118682]
[1673623999932,0.07585846,19227.0,19224.0,0.56427017]
[1673624000183,0.07585846,19227.0,19225.0,0.1]
[1673624000676,0.620148,19229.0,19226.0,0.1]
[1673624000677,9e-05,19229.0,19226.0,0.1]
[1673624000925,9e-05,19229.0,19226.0,0.628615]
[1673624000926,0.134,19227.0,19226.0,0.628615]
[1673624001442,0.134,19227.0,19226.0,1.473565]
[1673624001944,0.07877859,19229.0,19226.0,1.473565]
[1673624002200,0.136,19227.0,19226.0,1.148743]
[1673624002448,0.07877859,19229.0,19226.0,1.74633912]
[1673624002687,0.07877859,19229.0,19226.0,1.74733912]
[1673624002688,0.136,19227.0,19226.0,1.74733912]
[1673624002929,0.07877859,19229.0,19226.0,1.74633912]
[1673624003186,0.06565,19228.0,19227.0,0.324822]
[1673624003427,0.06565,19228.0,19227.0,1.58382894]
[1673624003682,0.06565,19228.0,19227.0,1.635224]
[1673624004914,0.20065,19228.0,19227.0,1.636224]
[1673624005646,0.20065,19228.0,19227.0,2.31214315]
[1673624005906,0.20065,19228.0,19227.0,1.636224]
[1673624006393,0.20065,19228.0,19227.0,2.156325]
[1673624007440,0.20065,19228.0,19227.0,2.6824977]
[1673624007441,0.15684411,19228.0,19227.0,2.6824977]
[1673624007680,0.01115023,19230.0,19228.0,0.07363395]
[1673624007934,0.01115023,19230.0,19229.0,0.495022]
[1673624008193,0.00115023,19230.0,19229.0,2.155163]
[1673624008687,0.00115023,19230.0,19229.0,3.0338472]
[1673624008932,0.00115023,19230.0,19229.0,2.99776478]
[1673624009179,0.01413489,19231.0,19229.0,3.29776478]
[1673624009441,0.01294562,19232.0,19231.0,0.1]
[1673624009694,0.01294562,19232.0,19231.0,2.34474514]
[1673624009947,0.01294562,19232.0,19231.0,2.64467003]
[1673624010191,0.01413489,19233.0,19232.0,0.1]
[1673624010432,0.01421954,19235.0,19232.0,2.81108489]
[1673624010676,0.01421954,19235.0,19234.0,0.1615]
[1673624010923,0.51575048,19242.0,19234.0,2.0467]
[1673624010924,0.69846048,19242.0,19234.0,2.0467]
[1673624011174,0.02298221,19242.0,19235.0,1.05069672]
[1673624011418,0.02298221,19242.0,19237.0,1.039656]
[1673624011419,0.12298221,19242.0,19237.0,1.039656]
[1673624011665,0.02298221,19242.0,19238.0,1.05919672]
[1673624011928,0.12298221,19242.0,19239.0,0.21030494]
[1673624012168,0.113,19242.0,19238.0,0.21880494]
[1673624012417,0.040055,19241.0,19238.0,0.21880494]
[1673624012663,0.14,19242.0,19238.0,0.21880494]
[1673624012906,0.02093355,19241.0,19239.0,0.57755918]
[1673624013155,0.02093355,19241.0,19240.0,0.1]
[1673624013400,0.00405355,19241.0,19240.0,0.61975]
[1673624013646,0.00405355,19241.0,19240.0,0.51975]
[1673624013904,0.00405355,19241.0,19239.0,0.012]
[1673624013905,0.1,19240.0,19239.0,0.012]
[1673624014145,1.179555,19240.0,19234.0,0.51989]
[1673624014405,1.1395,19240.0,19234.0,0.51989]
[1673624014651,1.7270877,19239.0,19229.0,3.146146]
[1673624014900,1.039716,19236.0,19229.0,0.21030494]
[1673624015158,0.340055,19235.0,19229.0,0.520047]
[1673624015403,0.340055,19235.0,19229.0,1.21579538]
[1673624015404,0.819887,19235.0,19229.0,1.21579538]
[1673624015673,0.1,19234.0,19230.0,0.1]
[1673624015916,0.040055,19233.0,19228.0,1.19671447]
[1673624016161,0.519955,19233.0,19229.0,0.002]
[1673624016412,0.040055,19232.0,19228.0,0.58112818]
[1673624016659,0.040055,19232.0,19229.0,0.101]
[1673624016660,0.4,19232.0,19229.0,0.101]
[1673624016902,0.3,19232.0,19229.0,0.64821307]
[1673624017158,1.07995855,19234.0,19230.0,0.55615278]
[1673624017159,0.46004455,19234.0,19230.0,0.55615278]
[1673624017412,0.46004455,19234.0,19231.0,0.21030494]
[1673624017655,3.086218,19238.0,19232.0,0.31030494]
[1673624017900,0.32777915,19236.0,19233.0,0.31030494]
[1673624018156,0.040055,19235.0,19233.0,0.31030494]
[1673624018395,0.1,19237.0,19234.0,0.52880427]
[1673624018396,0.42872856,19237.0,19234.0,0.52880427]
[1673624018646,0.42872856,19237.0,19235.0,0.1]
[1673624018888,0.136,19236.0,19235.0,0.31030494]
[1673624019146,0.42872856,19237.0,19235.0,0.0085]
[1673624019404,0.136,19237.0,19229.0,0.2605]
[1673624019656,0.140055,19236.0,19229.0,0.1]
[1673624019906,0.559954,19235.0,19229.0,1.01947985]
[1673624020148,0.519899,19235.0,19229.0,0.93947985]
[1673624020407,0.63385495,19234.0,19230.0,0.1]
[1673624020670,0.3,19234.0,19230.0,0.1]
[1673624020911,0.3,19235.0,19228.0,0.07363395]
[1673624021157,0.559978,19234.0,19228.0,0.28393889]
[1673624021400,0.1,19232.0,19228.0,0.82603338]
[1673624021642,0.040055,19231.0,19228.0,0.61572844]
[1673624021889,1.24836172,19233.0,19229.0,0.60156587]
[1673624022144,0.32,19235.0,19231.0,0.61184237]
[1673624022371,0.1,19234.0,19232.0,0.21030494]
[1673624022649,0.1,19234.0,19231.0,0.61184237]
[1673624022888,0.73373164,19235.0,19231.0,0.82214731]
[1673624023145,0.49626933,19236.0,19232.0,0.31880494]
[1673624023393,0.49626933,19236.0,19232.0,0.21880494]
[1673624023394,0.1,19234.0,19232.0,0.21880494]
[1673624023643,0.4292317,19235.0,19231.0,1.18655149]
[1673624023891,0.135,19233.0,19232.0,0.79878582]
[1673624024138,0.4292317,19235.0,19233.0,0.59797409]
[1673624024389,1.791821,19238.0,19235.0,0.1]
[1673624024638,0.619798,19239.0,19236.0,0.21030494]
[1673624024639,0.35903799,19239.0,19236.0,0.21030494]
[1673624024900,0.35903799,19239.0,19237.0,0.21030494]
[1673624025413,0.137,19238.0,19237.0,0.1]
[1673624025700,0.35903799,19239.0,19237.0,0.619816]
[1673624025943,0.49503799,19239.0,19237.0,0.621816]
[1673624026197,0.136,19239.0,19238.0,0.51872076]
[1673624026448,0.136,19239.0,19238.0,1.88379276]
[1673624026693,0.136,19239.0,19238.0,1.55832876]
[1673624026938,0.136,19239.0,19238.0,0.519804]
[1673624026939,0.2552836,19239.0,19238.0,0.519804]
[1673624027183,0.2552836,19239.0,19237.0,0.521816]
[1673624027466,0.64384467,19238.0,19236.0,0.519841]
[1673624027708,0.040055,19237.0,19235.0,0.51986]
[1673624027956,0.34384467,19238.0,19236.0,0.55504884]
[1673624028229,0.34384467,19238.0,19237.0,0.425464]
[1673624028476,0.01497836,19240.0,19237.0,0.1]
[1673624028716,0.135,19238.0,19237.0,0.83013594]
[1673624028959,0.135,19238.0,19237.0,0.519831]
[1673624029208,0.135,19238.0,19237.0,1.148162]
[1673624029456,0.135,19238.0,19237.0,3.14189234]
[1673624029712,0.135,19238.0,19237.0,3.0930874]
[1673624029979,0.01497836,19240.0,19238.0,0.65504039]
[1673624030233,0.15097836,19240.0,19239.0,1.373518]
[1673624030475,0.01497836,19240.0,19239.0,1.373518]
[1673624030751,0.30220201,19240.0,19239.0,1.048054]
[1673624031001,0.30220201,19240.0,19237.0,0.519831]
[1673624031247,0.28758258,19239.0,19235.0,1.13219513]
[1673624031499,0.040055,19238.0,19236.0,0.6109137]
[1673624031743,0.00997836,19240.0,19238.0,0.69713508]
[1673624031997,0.00997836,19240.0,19239.0,0.845241]
[1673624032499,0.00997836,19240.0,19239.0,1.139554]
[1673624032750,0.11097836,19240.0,19239.0,1.88312928]
[1673624033000,0.00997836,19240.0,19239.0,2.93136443]
[1673624033517,0.00997836,19240.0,19239.0,1.373518]
[1673624033754,0.14597836,19240.0,19239.0,1.375518]
[1673624034004,0.14597836,19240.0,19239.0,1.048054]
[1673624034005,0.00997836,19240.0,19239.0,1.048054]
[1673624034249,0.37950414,19240.0,19239.0,0.003]
[1673624037213,0.0023778,19238.0,19236.0,0.519839]
[1673624037471,0.0023778,19238.0,19235.0,1.21456321]
[1673624037724,0.0023778,19238.0,19236.0,0.66300159]
[1673624037968,0.0023778,19238.0,19237.0,0.93761433]
[1673624038216,0.0173778,19238.0,19237.0,1.13198133]
[1673624038456,0.0173778,19238.0,19237.0,1.365126]
[1673624038708,0.0173778,19238.0,19237.0,2.00979863]
[1673624039230,0.0023778,19238.0,19237.0,1.473626]
[1673624039471,0.1363778,19238.0,19237.0,2.16032587]
[1673624039721,0.0023778,19238.0,19237.0,2.16032587]
[1673624039965,0.1363778,19238.0,19237.0,2.16032587]
[1673624040216,0.1363778,19238.0,19237.0,2.06032587]
[1673624040467,0.48539043,19238.0,19237.0,0.845295]
[1673624040726,0.78539043,19238.0,19235.0,0.519863]
[1673624040975,0.3,19237.0,19234.0,1.03499515]
[1673624041217,0.3,19237.0,19235.0,0.72931633]
[1673624041464,0.3,19237.0,19235.0,0.62931633]
[1673624041712,0.48539043,19238.0,19234.0,1.039803]
[1673624041964,0.58539043,19238.0,19234.0,1.25010794]
[1673624042218,0.29031174,19237.0,19235.0,0.1]
[1673624042473,0.3,19236.0,19233.0,0.519914]
[1673624042730,0.3,19236.0,19235.0,0.009]
[1673624042984,0.3,19236.0,19233.0,0.61072625]
[1673624043257,0.98619035,19237.0,19235.0,0.009]
[1673624043258,1.01930921,19237.0,19235.0,0.009]
[1673624043495,0.41145721,19237.0,19234.0,0.60102053]
[1673624043744,0.088,19236.0,19235.0,0.63923678]
[1673624043989,0.4195743,19238.0,19236.0,0.56020961]
[1673624044243,0.3,19237.0,19231.0,0.10606673]
[1673624044503,0.040055,19236.0,19235.0,0.009]
[1673624044756,1.79687062,19237.0,19235.0,0.009]
[1673624045006,0.659913,19236.0,19235.0,0.009]
[1673624045261,0.040055,19236.0,19235.0,0.009]
[1673624045511,0.36918062,19237.0,19235.0,0.69300964]
[1673624045772,0.088,19236.0,19235.0,0.70200964]
[1673624046274,0.48747309,19239.0,19235.0,1.22139464]
[1673624046515,0.53250986,19239.0,19236.0,0.21030494]
[1673624046762,0.3,19238.0,19236.0,0.83015894]
[1673624047009,0.30726027,19238.0,19236.0,0.519854]
[1673624047258,0.40726027,19238.0,19236.0,0.519854]
[1673624047500,0.40726027,19238.0,19235.0,1.23037364]
[1673624047747,0.440055,19237.0,19235.0,0.009]
[1673624047995,0.040055,19236.0,19235.0,0.009]
[1673624048243,0.45836225,19238.0,19235.0,0.57188525]
[1673624048496,2.11482222,19240.0,19236.0,0.21780494]
[1673624048497,1.59305145,19240.0,19236.0,0.21780494]
[1673624048742,1.49792822,19240.0,19237.0,1.28890932]
[1673624048995,1.49792822,19240.0,19238.0,0.1]
[1673624049241,0.00997836,19240.0,19238.0,1.34988694]
[1673624049498,0.00997836,19240.0,19239.0,0.91454011]
[1673624049757,0.00997836,19240.0,19239.0,1.43431711]
[1673624050004,0.00997836,19240.0,19239.0,1.96259411]
[1673624050240,0.00997836,19240.0,19239.0,1.63713011]
[1673624050497,0.00997836,19240.0,19239.0,1.96259411]
[1673624051239,0.00997836,19240.0,19239.0,2.06259411]
[1673624051735,0.09097836,19240.0,19239.0,2.5515098]
[1673624051989,0.09097836,19240.0,19239.0,2.47220767]
[1673624052485,0.09097836,19240.0,19239.0,2.04615159]
[1673624052486,0.00997836,19240.0,19239.0,2.04615159]
[1673624052741,0.01697836,19240.0,19239.0,2.14915159]
[1673624053001,0.00997836,19240.0,19239.0,2.04615159]
[1673624053249,0.00997836,19240.0,19239.0,2.14915159]
[1673624053250,0.01697836,19240.0,19239.0,2.14915159]
[1673624053501,0.00997836,19240.0,19239.0,2.04615159]
[1673624053751,0.00997836,19240.0,19239.0,1.72068759]
[1673624053998,0.00997836,19240.0,19239.0,1.62068759]
[1673624054489,0.36860461,19240.0,19239.0,1.048054]
[1673624054971,0.37560461,19240.0,19239.0,1.151054]
[1673624055221,0.01697836,19240.0,19239.0,1.151054]
[1673624055467,0.30080232,19242.0,19239.0,1.90219913]
[1673624055722,0.30080232,19242.0,19240.0,0.63825886]
[1673624055979,0.01497836,19244.0,19241.0,1.36491]
[1673624056231,0.27734974,19243.0,19242.0,0.333964]
[1673624056473,0.34762021,19244.0,19241.0,1.039446]
[1673624056474,0.30886248,19242.0,19241.0,1.039446]
[1673624056725,0.19793614,19242.0,19239.0,0.553777]
[1673624056969,0.040055,19241.0,19239.0,0.553777]
[1673624057214,1.07757914,19242.0,19239.0,0.034]
[1673624057486,0.41384843,19241.0,19239.0,0.034]
[1673624057731,0.41384843,19241.0,19237.0,0.51981]
[1673624057732,0.3,19240.0,19237.0,0.51981]
[1673624057995,0.040055,19239.0,19232.0,0.1]
[1673624058245,1.23966657,19239.0,19233.0,0.519924]
[1673624058484,0.3,19238.0,19234.0,0.53757541]
[1673624058739,0.68123114,19240.0,19238.0,0.51667566]
[1673624058993,0.37775805,19240.0,19239.0,0.89972344]
[1673624059244,0.29272146,19241.0,19239.0,0.89972344]
[1673624059482,0.39797043,19243.0,19240.0,0.52930597]
[1673624059739,0.63056238,19243.0,19241.0,0.21030494]
[1673624060012,0.39797043,19243.0,19241.0,0.31030494]
[1673624060257,0.39797043,19243.0,19241.0,0.21030494]
[1673624060768,0.15488114,19243.0,19241.0,0.57933044]
[1673624061004,1.68778291,19244.0,19242.0,0.65322698]
[1673624061005,1.6100721,19244.0,19242.0,0.65322698]
[1673624061248,0.4092721,19244.0,19242.0,0.65322698]
[1673624061493,0.4092721,19244.0,19241.0,1.03506182]
[1673624061494,0.4092721,19244.0,19241.0,0.519721]
[1673624061775,0.28392752,19242.0,19241.0,0.528721]
[1673624062033,0.28392752,19242.0,19241.0,0.528221]
[1673624062549,0.80349726,19244.0,19241.0,1.17387192]
[1673624062792,0.3,19242.0,19241.0,0.007124]
[1673624063039,0.62142211,19242.0,19241.0,0.007124]
[1673624063279,1.0088952,19242.0,19239.0,0.519751]
[1673624063535,1.0088952,19242.0,19238.0,1.07099121]
[1673624063536,0.001,19239.0,19238.0,1.07099121]
[1673624063779,0.110875,19239.0,19236.0,0.79866874]
[1673624064058,0.25488114,19240.0,19236.0,0.79866874]
[1673624064299,0.45488114,19239.0,19236.0,0.79866874]
[1673624064544,0.45488114,19239.0,19237.0,0.56889639]
[1673624064811,0.19493614,19238.0,19234.0,1.20907463]
[1673624065054,0.19493614,19238.0,19234.0,0.68917263]
[1673624065055,0.1,19237.0,19234.0,0.68917263]
[1673624065303,0.1,19237.0,19236.0,0.1]
[1673624065304,0.24890674,19237.0,19236.0,0.1]
[1673624065552,0.15488114,19238.0,19235.0,0.6142408]
[1673624065798,0.29826689,19239.0,19236.0,0.519858]
[1673624066049,0.99145247,19241.0,19237.0,0.31030494]
[1673624066298,0.44863412,19241.0,19238.0,0.73010394]
[1673624066540,0.38747309,19243.0,19239.0,0.31030494]
[1673624066785,0.66843492,19244.0,19240.0,2.10350394]
[1673624067030,0.43584297,19244.0,19241.0,1.05110976]
[1673624067284,0.01497836,19244.0,19242.0,1.58366094]
[1673624067535,0.01497836,19244.0,19243.0,0.325464]
[1673624067775,0.01497836,19244.0,19243.0,1.047838]
[1673624068026,0.02197836,19244.0,19243.0,2.3579772]
[1673624068288,0.00497836,19244.0,19243.0,2.14767226]
[1673624068536,0.06097836,19244.0,19243.0,2.04767226]
[1673624068788,0.00497836,19244.0,19243.0,2.04767226]
[1673624069031,0.06097836,19244.0,19243.0,1.72220826]
[1673624069283,0.06097836,19244.0,19243.0,2.04767226]
[1673624069532,0.06097836,19244.0,19243.0,1.047838]
[1673624069789,0.29857235,19244.0,19243.0,1.047838]
[1673624070043,0.01497836,19245.0,19243.0,1.047838]
[1673624070283,0.01497836,19245.0,19244.0,0.96831]
[1673624070525,0.01497836,19245.0,19244.0,2.007594]
[1673624070774,0.2823811,19245.0,19244.0,1.047784]
[1673624071059,0.01497836,19245.0,19244.0,0.519642]
[1673624071313,0.29323977,19244.0,19243.0,0.519669]
[1673624071552,0.29323977,19244.0,19243.0,0.528169]
[1673624072060,0.03197836,19245.0,19243.0,1.047838]
[1673624072309,0.01497836,19245.0,19244.0,0.97739389]
[1673624072567,0.01497836,19245.0,19244.0,2.02517789]
[1673624073053,0.01497836,19245.0,19244.0,2.43900579]
[1673624073311,0.01497836,19245.0,19244.0,2.02517789]
[1673624073561,0.01497836,19245.0,19244.0,2.43900579]
[1673624073814,0.02197836,19245.0,19244.0,2.9859506]
[1673624074057,0.02197836,19245.0,19244.0,2.4597179]
[1673624074547,0.01491104,19246.0,19245.0,0.07610158]
[1673624074810,0.01491104,19246.0,19245.0,2.02404861]
[1673624075310,6.3e-07,19249.0,19246.0,0.1]
[1673624075557,6.3e-07,19249.0,19248.0,0.42143]
[1673624075800,0.01520369,19251.0,19249.0,0.1]
[1673624076063,0.01520369,19251.0,19250.0,3.19360634]
[1673624076309,0.01520369,19251.0,19250.0,2.9918014]
[1673624076818,2.8,19255.0,19251.0,0.1]
[1673624077088,2.8,19255.0,19254.0,0.1617]
[1673624077333,2.8,19255.0,19254.0,2.04528]
[1673624077590,2.8,19255.0,19254.0,1.89208]
[1673624077842,2.8,19255.0,19254.0,2.6800127]
[1673624078091,2.8,19255.0,19254.0,3.59722413]
[1673624078092,2.812,19255.0,19254.0,3.59722413]
[1673624078590,2.46628393,19255.0,19254.0,3.09228853]
[1673624078837,2.46628393,19255.0,19254.0,3.59891475]
[1673624079081,2.46628393,19255.0,19254.0,2.81098205]
[1673624079082,2.45428393,19255.0,19254.0,2.81098205]
[1673624079335,2.46628393,19255.0,19254.0,2.45270622]
[1673624079838,2.46628393,19255.0,19254.0,3.23859892]
[1673624080090,2.46628393,19255.0,19254.0,3.65202626]
[1673624080350,2.46628393,19255.0,19254.0,3.30590004]
[1673624080841,2.46628393,19255.0,19254.0,3.3245161]